bitfinex/quotes_ETHUSD_20260203
["timestamp","ask_amount","ask_price","bid_price","bid_amount"]
[1770077266013,2.45730403,2336.8,2335.8,0.01284659]
[1770077266211,15.41675564,2336.8,2335.2,11.70521093]
[1770077266414,12.95945161,2336.6,2334.9,11.70521093]
[1770077266619,12.95945161,2336.4,2334.9,11.70521093]
[1770077266819,1.80996213,2336.3,2334.9,11.70521093]
[1770077267019,1.47694137,2336.2,2335.0,11.70521093]
[1770077267238,0.898,2336.3,2335.0,11.70521093]
[1770077267742,14.92755683,2336.3,2335.0,11.70521093]
[1770077268116,14.92755683,2336.3,2335.0,1.07065501]
[1770077268640,14.92755683,2336.3,2334.9,1.07067942]
[1770077268810,14.92755683,2336.3,2335.0,1.07066204]
[1770077269014,1.92076827,2336.2,2335.1,0.53534942]
[1770077269222,0.898,2336.3,2335.1,12.24056035]
[1770077269414,0.01284659,2336.0,2335.1,0.53534942]
[1770077269620,0.01284659,2336.0,2334.7,1.07079905]
[1770077269621,12.95945161,2335.9,2334.7,1.07079905]
[1770077269843,14.02974334,2335.9,2334.6,4.28338529]
[1770077270053,14.02974334,2335.9,2334.6,16.66500465]
[1770077270054,12.95945161,2335.9,2334.6,16.66500465]
[1770077270260,12.95945161,2335.9,2334.5,1.07086183]
[1770077270261,14.0297283,2335.9,2334.5,1.07086183]
[1770077270749,14.0297283,2335.9,2334.5,13.45248119]
[1770077271046,1.83235801,2335.8,2334.5,13.45248119]
[1770077271864,1.07027669,2335.9,2334.5,13.45248119]
[1770077272225,13.69523437,2335.9,2334.5,13.45248119]
[1770077272661,13.69523437,2335.9,2334.5,1.07086183]
[1770077273922,12.62495768,2335.7,2334.2,0.1180849]
[1770077274048,12.62495768,2335.5,2334.2,0.1180849]
[1770077274226,12.62495768,2335.3,2334.2,0.1180849]
[1770077274656,0.898,2335.4,2334.2,0.1180849]
[1770077274864,2.2905032,2335.6,2334.4,1.07093011]
[1770077275031,2.2905032,2335.6,2334.4,13.45254947]
[1770077275233,2.2905032,2335.6,2334.4,13.45254954]
[1770077275758,1.07043459,2335.5,2334.4,12.38161936]
[1770077275929,1.07043459,2335.5,2334.4,13.45255067]
[1770077276962,1.07043459,2335.5,2334.4,12.38161936]
[1770077277256,13.69539227,2335.5,2334.2,12.49970426]
[1770077277462,2.02674544,2335.4,2334.4,1.07093223]
[1770077277665,2.02674544,2335.4,2334.4,13.45255159]
[1770077277869,4.28144186,2335.7,2334.4,13.45355159]
[1770077277870,1.07036201,2335.7,2334.4,13.45355159]
[1770077279960,14.59328424,2335.8,2334.4,13.45355159]
[1770077284358,14.59329126,2335.8,2334.4,13.45355159]
[1770077286179,0.898,2335.8,2334.7,12.38161936]
[1770077286477,12.62495768,2336.4,2334.9,12.3944676]
[1770077286648,12.62495768,2336.4,2334.9,13.2924676]
[1770077286854,13.69498309,2336.4,2334.9,13.2924676]
[1770077287168,13.69498309,2336.4,2334.9,12.38161936]
[1770077287169,13.69499389,2336.4,2334.9,12.38161936]
[1770077287371,12.62495768,2336.2,2334.9,12.38161936]
[1770077287679,1.79750072,2336.3,2334.9,12.38161936]
[1770077288257,1.79750072,2336.3,2335.1,12.38161936]
[1770077289085,1.06992112,2336.7,2335.1,12.38161936]
[1770077289257,0.91278244,2336.6,2335.1,12.38161936]
[1770077289585,0.91278244,2336.5,2335.1,12.38161936]
[1770077289756,12.62495768,2336.6,2335.1,12.38161936]
[1770077289955,0.91341464,2336.5,2335.1,12.38161936]
[1770077290177,1.35383723,2336.4,2335.3,12.38161936]
[1770077290554,1.35383723,2336.4,2335.5,12.38161936]
[1770077291479,15.04882051,2336.4,2335.3,1.07051919]
[1770077291684,15.04882051,2336.4,2335.8,0.042811]
[1770077292083,0.0011,2336.1,2335.8,0.042811]
[1770077294996,0.0011,2336.1,2335.3,1.07049621]
[1770077295193,0.0011,2336.1,2335.4,1.60574874]
[1770077295569,12.62605768,2336.1,2335.4,1.60574874]
[1770077296471,12.62605768,2336.1,2335.3,1.07048947]
[1770077296866,12.62605768,2336.1,2335.4,1.07047631]
[1770077297598,12.62605768,2336.1,2335.0,12.38161936]
[1770077300294,12.62605768,2336.1,2335.1,1.07061796]
[1770077300702,12.62605768,2336.1,2334.1,1.77434041]
[1770077300910,0.01284824,2333.5,2332.7,6.76830868]
[1770077301214,1.62282044,2333.9,2332.9,12.35171008]
[1770077301502,0.898,2334.3,2333.1,13.42323227]
[1770077301503,0.91122114,2333.8,2333.1,13.42323227]
[1770077301699,1.13645789,2334.1,2333.1,12.35171008]
[1770077301875,0.91141895,2334.0,2333.2,6.58202875]
[1770077302080,0.91141895,2333.9,2333.2,5.51053896]
[1770077302413,0.91141895,2333.8,2333.2,5.51053896]
[1770077302608,1.13645789,2334.1,2333.3,0.65820723]
[1770077302910,0.91060072,2334.0,2333.2,6.58202827]
[1770077303070,0.91060072,2333.9,2333.2,1.07148931]
[1770077303275,1.13645789,2334.2,2333.3,5.51053896]
[1770077303578,0.90989911,2334.1,2333.3,5.51053896]
[1770077303793,0.90989911,2334.0,2333.3,5.51053896]
[1770077304105,0.90989911,2333.9,2333.3,5.51053896]
[1770077304315,13.56549186,2334.2,2333.3,6.58195414]
[1770077304525,0.9093832,2334.1,2333.3,6.58197817]
[1770077304673,0.9093832,2334.0,2333.3,6.58197817]
[1770077305016,0.9093832,2333.9,2333.3,6.58197817]
[1770077305321,13.56549186,2334.2,2333.4,0.65819782]
[1770077305613,0.9088843,2334.1,2333.4,0.65819782]
[1770077305776,0.9088843,2334.0,2333.4,0.65819782]
[1770077305975,0.9088843,2333.9,2333.5,0.001]
[1770077306168,0.9088843,2333.8,2333.5,0.001]
[1770077306376,1.13645789,2334.1,2333.5,5.51153896]
[1770077306573,0.90819501,2334.0,2333.5,5.51153896]
[1770077306868,0.90819501,2333.9,2333.5,5.51153896]
[1770077307084,0.90819501,2333.8,2333.5,5.51153896]
[1770077307271,1.70612213,2334.0,2333.5,5.51153896]
[1770077307491,0.9076461,2333.9,2333.5,5.51153896]
[1770077307689,1.13645789,2334.2,2333.5,17.86324904]
[1770077307892,1.51650136,2334.8,2333.7,12.35171008]
[1770077308402,13.94553533,2334.9,2333.8,4.37408107]
[1770077308772,12.42903397,2334.9,2333.8,4.37408107]
[1770077308981,13.8235875,2334.8,2333.8,4.37408107]
[1770077310481,13.8235875,2334.8,2333.8,5.4452622]
[1770077310803,1.39455353,2334.8,2333.9,12.3645685]
[1770077310976,13.94553533,2335.1,2333.9,12.3645685]
[1770077311177,12.42903397,2335.1,2334.0,4.37408107]
[1770077312302,3.48503281,2335.3,2334.0,16.72579115]
[1770077312600,13.49965098,2335.2,2334.1,1.07107664]
[1770077312793,12.42903397,2335.2,2334.1,1.07107664]
[1770077312988,12.42903397,2335.0,2334.2,4.37408107]
[1770077313372,1.59140873,2335.1,2334.2,16.72579115]
[1770077313575,13.32703397,2335.3,2334.2,16.72579115]
[1770077313771,0.898,2335.5,2334.3,12.3645685]
[1770077313976,0.898,2335.5,2334.4,4.37408107]
[1770077314180,1.51650136,2335.8,2334.5,12.35171008]
[1770077314506,12.43013397,2335.9,2334.7,12.35171008]
[1770077314709,1.45907397,2335.8,2334.9,1.07070966]
[1770077314882,14.95840505,2335.8,2334.8,4.37408107]
[1770077315201,12.42903397,2335.7,2334.8,4.37408107]
[1770077315905,12.42903397,2335.7,2334.3,4.28384289]
[1770077315906,12.42903397,2335.4,2334.0,12.35171008]
[1770077316079,14.60146609,2335.4,2334.1,1.07107347]
[1770077316414,12.42903397,2335.2,2334.1,1.07107347]
[1770077316604,13.32703397,2335.2,2334.1,1.07107347]
[1770077317009,13.49965193,2335.1,2334.2,4.37408107]
[1770077317208,13.49965193,2335.1,2334.0,4.37408107]
[1770077317385,14.51428956,2335.0,2334.0,4.37408107]
[1770077317584,14.51428956,2335.0,2333.8,1.07118884]
[1770077317585,14.51428956,2335.0,2333.9,1.07116718]
[1770077317785,14.51428956,2335.0,2334.0,1.07111393]
[1770077318006,2.08525559,2335.0,2334.0,1.07111393]
[1770077318205,1.96860642,2335.2,2334.0,1.07111393]
[1770077318786,1.96860642,2335.2,2334.1,4.37408107]
[1770077319100,1.96860642,2335.2,2334.1,5.44512896]
[1770077319623,1.96860642,2335.2,2334.4,0.001]
[1770077319913,0.9071185,2335.1,2334.4,0.001]
[1770077320113,1.19469099,2335.0,2334.4,0.001]
[1770077320312,0.9071185,2334.9,2334.4,4.37508107]
[1770077320485,0.9071185,2334.8,2333.7,16.63667326]
[1770077320686,11.7117306,2335.0,2333.9,1.0711638]
[1770077320886,2.07851181,2334.9,2333.9,1.0711638]
[1770077321087,0.90733875,2334.8,2333.9,1.0711638]
[1770077321286,2.24190113,2334.9,2333.8,1.07121432]
[1770077321593,12.33174924,2334.8,2333.5,1.07232461]
[1770077321798,0.90759113,2334.7,2333.5,1.07232461]
[1770077322123,2.20635913,2334.6,2333.7,1.07125407]
[1770077322417,0.898,2334.8,2333.7,13.42296415]
[1770077322715,0.90774265,2334.7,2333.7,13.42296415]
[1770077322912,0.90774265,2334.6,2333.7,13.42296415]
[1770077323112,0.90807335,2334.5,2333.7,13.42296415]
[1770077323313,0.898,2334.8,2333.7,13.42296415]
[1770077323619,1.60106375,2334.7,2333.8,12.35171008]
[1770077323933,0.90807364,2334.6,2333.8,12.35171008]
[1770077324213,0.90807364,2334.5,2333.8,12.35171008]
[1770077324403,0.90807364,2334.4,2333.8,12.35171008]
[1770077324608,0.69299011,2334.7,2333.8,12.35171008]
[1770077324806,0.9084665,2334.6,2333.8,12.35171008]
[1770077325111,0.9084665,2334.5,2333.8,12.35171008]
[1770077325290,0.9084665,2334.4,2333.9,13.42287851]
[1770077325612,4.96117306,2334.9,2333.9,13.42287851]
[1770077325815,0.90897051,2334.8,2333.9,13.42287851]
[1770077326007,0.90897051,2334.7,2333.9,13.42287851]
[1770077326204,0.90897051,2334.6,2333.9,13.42287851]
[1770077326422,0.90897051,2334.5,2333.9,13.42287851]
[1770077326613,2.68767442,2334.9,2333.9,13.42287851]
[1770077326813,1.40390343,2334.8,2333.9,13.42287851]
[1770077326995,0.90951216,2334.7,2333.9,13.42287851]
[1770077327197,0.90951216,2334.6,2333.9,13.42287851]
[1770077327417,0.90951216,2334.5,2333.9,13.42287851]
[1770077327616,0.49439127,2334.8,2333.9,13.42287851]
[1770077327921,0.91013184,2334.7,2333.9,13.42287851]
[1770077328122,0.91013184,2334.6,2333.9,13.42287851]
[1770077328332,0.91013184,2334.5,2333.9,13.42287851]
[1770077328505,0.91013184,2334.4,2333.9,13.42287851]
[1770077328706,2.01089263,2334.8,2333.9,13.42287851]
[1770077328900,1.22907875,2334.7,2333.9,13.42287851]
[1770077329120,0.91087218,2334.6,2333.9,13.42287851]
[1770077329323,0.91087218,2334.5,2333.9,13.42287851]
[1770077329628,0.91087218,2334.4,2333.8,1.0711801]
[1770077329825,0.91087218,2334.3,2333.8,1.0711801]
[1770077329999,0.91087218,2334.2,2333.7,1.07124118]
[1770077330326,0.91087218,2334.1,2333.7,1.07124118]
[1770077330515,1.51650136,2334.5,2333.8,1.0712115]
[1770077330713,0.91286782,2334.4,2333.8,1.0712115]
[1770077330913,0.91286782,2334.3,2333.7,1.07123815]
[1770077331115,0.91286782,2334.2,2333.8,1.0712131]
[1770077331420,1.51650136,2334.5,2333.7,1.07122698]
[1770077331421,0.91286782,2334.1,2333.7,1.07122698]
[1770077331607,1.51650136,2334.5,2333.7,1.07122698]
[1770077331804,0.91287723,2334.4,2333.7,13.65229344]
[1770077332009,1.51650136,2334.9,2334.1,12.58106646]
[1770077333124,1.51650136,2335.0,2334.1,12.58106646]
[1770077333710,1.51650136,2334.9,2334.1,12.58106646]
[1770077334201,1.51650136,2334.9,2334.0,1.0710983]
[1770077334402,0.2587172,2334.8,2334.0,1.0710983]
[1770077335011,0.2587172,2334.8,2333.9,1.07213865]
[1770077335530,0.2587172,2334.8,2333.9,0.001]
[1770077335734,15.59002789,2334.8,2333.9,0.001]
[1770077335899,1.51650136,2334.7,2333.9,0.001]
[1770077336098,1.55900279,2334.6,2333.9,0.001]
[1770077337126,3.07550415,2334.6,2333.9,0.001]
[1770077339342,11.42415811,2334.5,2333.6,0.001]
[1770077339520,1.51650136,2334.4,2333.6,0.001]
[1770077339721,1.98379447,2334.3,2333.6,0.001]
[1770077342516,3.05482216,2334.3,2333.6,0.001]
[1770077342835,12.93965947,2334.2,2333.6,0.001]
[1770077343033,1.5383208,2334.3,2333.0,13.29673946]
[1770077343034,1.51650136,2333.9,2333.0,13.29673946]
[1770077343205,2.81036731,2333.8,2333.0,13.29673946]
[1770077344033,0.9126294,2333.7,2333.0,0.715673]
[1770077344238,0.9126294,2333.6,2333.0,0.715673]
[1770077344441,0.9126294,2333.5,2333.0,0.715673]
[1770077344616,2.41450136,2333.9,2333.1,12.58106646]
[1770077344816,0.898,2333.9,2333.2,12.58106646]
[1770077345137,2.41450136,2333.9,2333.0,14.36831845]
[1770077345319,0.898,2333.9,2333.0,14.36831845]
[1770077346540,1.96920708,2333.9,2333.0,13.29673946]
[1770077346837,0.898,2333.9,2333.0,13.29673946]
[1770077347032,1.56380128,2333.8,2333.0,13.29673946]
[1770077347237,1.56380128,2333.8,2333.0,14.36831511]
[1770077347444,0.898,2333.9,2333.0,14.36831511]
[1770077348137,0.898,2333.9,2333.2,12.58206646]
[1770077350037,0.898,2333.9,2333.2,0.001]
[1770077350651,13.05035472,2333.9,2333.2,0.001]
[1770077351037,0.898,2333.9,2333.2,12.58206646]
[1770077353452,0.0011,2334.1,2333.2,13.6535509]
[1770077353662,13.22453794,2334.1,2333.2,0.001]
[1770077356616,0.91155799,2334.0,2333.2,0.001]
[1770077356811,0.91155799,2333.9,2333.2,0.001]
[1770077357018,0.91155799,2333.8,2333.2,0.001]
[1770077357226,0.91155799,2333.7,2333.2,0.001]
[1770077357432,6.07115781,2334.0,2333.2,0.001]
[1770077357636,3.162487,2333.9,2333.2,0.001]
[1770077357842,0.91159016,2333.8,2333.2,0.001]
[1770077358118,0.91159016,2333.7,2333.2,0.001]
[1770077358338,2.25089684,2333.9,2333.2,0.001]
[1770077358538,0.91165346,2333.8,2333.2,0.001]
[1770077358724,2.53294396,2333.7,2333.2,0.001]
[1770077358935,1.6212905,2333.7,2333.2,0.001]
[1770077359250,0.91157885,2333.6,2333.2,0.001]
[1770077359413,1.6212905,2333.7,2333.2,0.001]
[1770077359620,1.6212905,2333.7,2332.4,12.58106646]
[1770077359621,13.0639495,2333.6,2332.4,12.58106646]
[1770077359854,14.40759076,2333.5,2332.4,12.58106646]
[1770077360154,0.91159478,2333.4,2332.4,12.58106646]
[1770077360362,0.91159478,2333.3,2332.6,13.30801422]
[1770077360539,4.20905231,2333.7,2332.6,13.30801422]
[1770077360754,0.91115334,2333.6,2332.6,13.30801422]
[1770077360964,2.95769,2333.3,2332.2,12.236255]
[1770077361259,0.91115334,2333.2,2332.5,12.236255]
[1770077361561,0.898,2333.5,2332.6,13.30798507]
[1770077361763,0.9109471,2333.4,2332.6,13.30798507]
[1770077361958,0.9109471,2333.3,2332.6,13.30798507]
[1770077362261,0.898,2333.5,2332.6,12.236255]
[1770077362447,0.91098109,2333.4,2332.6,12.236255]
[1770077362650,0.91098109,2333.3,2332.6,12.236255]
[1770077362957,1.8372245,2333.5,2332.6,12.237255]
[1770077363139,0.91098533,2333.4,2332.6,12.237255]
[1770077363341,0.91098533,2333.3,2332.6,12.237255]
[1770077363541,1.8372245,2333.5,2332.6,12.237255]
[1770077363542,1.8372245,2333.5,2332.6,13.30901447]
[1770077363743,0.9111196,2333.4,2332.6,13.30901447]
[1770077364059,0.9111196,2333.3,2332.6,12.237255]
[1770077364265,2.90858748,2333.5,2332.6,12.237255]
[1770077364558,0.91131198,2333.4,2332.6,12.237255]
[1770077364762,0.91131198,2333.3,2332.6,12.237255]
[1770077364949,0.9392245,2333.5,2332.7,13.30795348]
[1770077365148,0.91132708,2333.4,2332.7,13.30795348]
[1770077365351,0.91132708,2333.3,2332.7,13.30795348]
[1770077365533,0.0011,2333.7,2332.7,13.30795348]
[1770077365861,0.91167757,2333.6,2332.7,13.30795348]
[1770077366062,0.91167757,2333.5,2332.7,13.30795348]
[1770077366363,0.0011,2333.7,2332.8,12.236255]
[1770077366528,0.91202396,2333.6,2332.8,12.236255]
[1770077366728,0.91202396,2333.5,2332.8,12.236255]
[1770077366953,0.91204727,2333.4,2332.8,12.236255]
[1770077367158,0.0011,2333.7,2332.8,12.236255]
[1770077367361,0.91222339,2333.6,2333.0,12.236255]
[1770077367676,0.91222339,2333.5,2333.0,12.236255]
[1770077367853,0.0011,2333.7,2333.1,12.236255]
[1770077370161,0.0011,2333.7,2332.9,1.07160547]
[1770077370377,0.0011,2333.7,2332.9,1.07162192]
[1770077370536,0.0011,2333.7,2332.8,12.236255]
[1770077370937,1.14143967,2333.7,2332.9,1.07159223]
[1770077371175,0.0011,2333.7,2333.2,12.236255]
[1770077375370,0.0011,2333.7,2332.9,13.30784649]
[1770077375576,1.14143967,2333.7,2332.9,13.30784649]
[1770077375869,1.14143967,2333.7,2332.9,12.236255]
[1770077376076,1.14143967,2333.7,2332.9,13.30786186]
[1770077376380,1.14143967,2333.7,2332.9,12.236255]
[1770077376745,1.14143967,2333.7,2332.7,5.18585914]
[1770077376746,2.21271702,2333.7,2332.7,14.20696085]
[1770077377165,2.21271702,2333.7,2332.7,13.30796851]
[1770077377347,0.0011,2333.5,2332.7,13.30796851]
[1770077379764,0.9140231,2333.4,2332.7,13.30796851]
[1770077379949,0.0011,2333.5,2332.7,13.30796851]
[1770077380265,0.91402235,2333.4,2332.7,13.30796851]
[1770077380467,0.0011,2333.5,2332.7,13.30796851]
[1770077380867,5.30650136,2333.8,2332.7,13.30796851]
[1770077380868,5.0,2334.0,2332.9,12.236255]
[1770077382583,5.0,2334.0,2333.1,12.236255]
[1770077383954,5.0,2334.0,2333.1,13.135255]
[1770077384484,5.0,2334.0,2333.3,12.236255]
[1770077386552,5.0,2334.0,2333.4,1.07139796]
[1770077386849,5.0,2334.0,2333.5,12.236255]
[1770077387673,0.0011,2334.1,2333.5,12.236255]
[1770077390183,0.0011,2334.1,2333.3,12.97926278]
[1770077390350,0.0011,2334.1,2333.3,14.0506901]
[1770077390786,0.0011,2334.1,2333.4,1.07139359]
[1770077391780,0.0011,2333.9,2333.4,1.07139359]
[1770077391985,12.60679646,2333.9,2333.1,0.001]
[1770077392766,0.91276741,2333.8,2333.1,0.001]
[1770077392957,0.91276741,2333.7,2333.1,0.001]
[1770077393157,1.5731038,2333.8,2333.1,0.001]
[1770077393358,0.91276576,2333.7,2333.1,0.001]
[1770077393657,1.5731038,2333.8,2333.1,0.001]
[1770077393886,0.91295035,2333.7,2333.1,0.001]
[1770077394191,0.0011,2333.9,2333.1,12.98026278]
[1770077394376,0.91319338,2333.8,2333.1,12.98026278]
[1770077394552,0.0011,2333.9,2333.1,12.98026278]
[1770077394757,0.0011,2333.9,2333.3,12.97926278]
[1770077395383,0.91330828,2333.8,2333.3,12.97926278]
[1770077395687,0.0011,2333.9,2333.3,12.97926278]
[1770077395900,0.91331826,2333.8,2333.3,12.97926278]
[1770077396190,0.0011,2333.9,2333.3,12.97926278]
[1770077396390,0.91340283,2333.8,2333.3,12.97926278]
[1770077396570,0.0011,2333.9,2333.3,12.97926278]
[1770077396756,0.0011,2333.9,2333.4,14.05066074]
[1770077400971,0.0011,2333.9,2333.1,0.001]
[1770077400972,12.60569646,2333.7,2333.1,0.001]
[1770077401158,0.91305657,2333.6,2333.1,0.001]
[1770077401359,12.60569646,2333.7,2333.1,0.001]
[1770077401555,2.23497955,2333.6,2333.1,0.001]
[1770077401767,0.0011,2333.9,2333.2,1.07145846]
[1770077401986,0.91306221,2333.8,2333.1,5.001]
[1770077402298,13.51875867,2333.7,2332.9,0.001]
[1770077402464,12.60569646,2333.5,2332.9,0.001]
[1770077402662,2.37897204,2333.4,2332.9,0.001]
[1770077402858,0.91306221,2333.3,2332.9,0.001]
[1770077403062,1.46590983,2333.4,2332.9,0.001]
[1770077403366,13.51883708,2333.3,2332.9,0.001]
[1770077403685,1.46590983,2333.4,2332.9,0.001]
[1770077403907,2.32022582,2333.3,2332.9,0.001]
[1770077404071,1.40716063,2333.3,2332.9,0.001]
[1770077406522,12.60569646,2333.5,2332.9,0.001]
[1770077406706,0.91259975,2333.4,2333.0,0.001]
[1770077406913,2.21167948,2333.6,2333.0,0.001]
[1770077407210,0.91260457,2333.5,2333.0,0.001]
[1770077407380,0.91260457,2333.4,2333.0,0.001]
[1770077407581,1.63438604,2333.4,2333.0,0.001]
[1770077409179,14.2400825,2333.4,2332.9,0.001]
[1770077409382,1.63438604,2333.4,2332.9,0.001]
[1770077411989,1.63438604,2333.4,2332.9,5.001]
[1770077412190,0.0011,2333.9,2333.0,12.97926278]
[1770077412419,0.91180846,2333.8,2333.0,17.97926278]
[1770077412727,0.91180846,2333.7,2333.0,17.97926278]
[1770077412906,1.0722758,2333.9,2333.0,17.97926278]
[1770077413226,0.91184942,2333.8,2333.0,17.97926278]
[1770077413534,0.91184942,2333.7,2333.0,17.97926278]
[1770077413703,1.0722739,2333.9,2333.0,17.97926278]
[1770077413891,0.91191128,2333.8,2333.0,17.97926278]
[1770077414091,0.91191128,2333.7,2333.0,17.97926278]
[1770077414287,0.0011,2333.9,2333.0,17.97926278]
[1770077414494,0.91198397,2333.8,2333.0,17.97926278]
[1770077414714,0.91198397,2333.7,2333.0,17.97926278]
[1770077415025,0.0011,2333.9,2333.0,17.97926278]
[1770077415231,0.91198658,2333.8,2333.0,5.0]
[1770077415416,0.91198658,2333.7,2333.0,5.0]
[1770077415730,2.12451459,2333.9,2333.0,5.0]
[1770077415891,0.91208127,2333.8,2333.0,5.0]
[1770077416087,0.0011,2333.9,2333.1,14.0507985]
[1770077416622,0.0011,2333.9,2333.1,12.97926278]
[1770077416801,0.0011,2333.9,2333.2,5.0]
[1770077418332,0.91259162,2333.8,2333.2,5.0]
[1770077418494,0.0011,2333.9,2333.2,19.05074914]
[1770077418825,0.0011,2333.9,2333.3,12.97926278]
[1770077420326,0.0011,2333.7,2333.3,12.97926278]
[1770077421398,1.14143967,2334.1,2333.3,14.05066601]
[1770077421599,0.0011,2334.1,2333.5,12.92830718]
[1770077421828,0.0011,2334.1,2333.7,12.92830718]
[1770077422728,0.0011,2334.1,2333.5,1.07134801]
[1770077422929,0.0011,2334.1,2333.5,6.07024801]
[1770077423227,0.0011,2334.1,2333.6,4.9989]
[1770077423430,0.0011,2334.1,2333.6,18.99850659]
[1770077424611,0.0011,2334.1,2333.7,1.07125889]
[1770077424930,0.0011,2334.1,2333.7,13.99956607]
[1770077425734,0.0011,2334.1,2333.8,4.9989]
[1770077425902,1.14033967,2334.9,2333.9,12.92830718]
[1770077426098,12.71731187,2334.7,2333.8,4.9978]
[1770077426303,1.05934186,2334.8,2333.9,12.92830718]
[1770077426522,0.91280466,2334.7,2333.9,12.92830718]
[1770077426726,1.05934186,2334.8,2334.0,4.9978]
[1770077426727,0.46265138,2334.8,2334.0,4.9978]
[1770077426914,0.91279739,2334.7,2334.0,4.9978]
[1770077427110,8.50165675,2334.6,2333.6,13.82730718]
[1770077427312,7.588887,2334.6,2333.8,4.9978]
[1770077427634,12.71731187,2334.5,2333.8,4.9978]
[1770077427802,12.71731187,2334.5,2333.8,6.06901029]
[1770077428309,0.2446165,2334.7,2333.9,13.99946734]
[1770077428503,0.46265138,2334.8,2333.9,13.99946734]
[1770077428709,0.91251231,2334.7,2334.0,4.9978]
[1770077429007,14.2507368,2334.8,2334.0,4.9978]
[1770077429206,13.62976409,2334.7,2334.0,4.9978]
[1770077429403,12.71731187,2334.7,2334.0,4.9978]
[1770077429626,14.14238555,2334.6,2333.7,1.07125704]
[1770077429814,14.14238555,2334.6,2333.8,6.06900952]
[1770077430014,1.42507368,2334.6,2333.8,6.06900952]
[1770077430214,1.42507368,2334.6,2333.9,1.0711645]
[1770077430633,1.42507368,2334.6,2334.0,18.99721921]
[1770077430835,0.46265138,2334.8,2334.0,17.92610718]
[1770077431209,0.46265138,2334.8,2334.0,4.9978]
[1770077431411,0.46265138,2334.8,2334.0,17.92610718]
[1770077431617,0.46265138,2334.8,2333.6,5.18419263]
[1770077431618,12.71731187,2334.6,2333.6,0.899]
[1770077431828,12.71731187,2334.6,2333.7,6.06905241]
[1770077432037,1.27173119,2334.5,2333.8,1.07121256]
[1770077432237,1.27173119,2334.5,2333.9,4.9978]
[1770077432437,0.46265138,2334.8,2334.0,13.99942053]
[1770077433152,0.46265138,2334.8,2334.1,17.92610718]
[1770077433309,0.899,2335.0,2334.2,12.92830718]
[1770077433639,0.0011,2335.1,2334.4,12.92830718]
[1770077434014,0.0011,2334.6,2334.4,12.92830718]
[1770077434221,0.0011,2334.6,2334.5,4.9978]
[1770077434439,0.0011,2335.1,2334.5,12.92830718]
[1770077434646,0.0011,2335.1,2334.6,4.9967]
[1770077434941,0.0011,2334.8,2334.6,4.9967]
[1770077435140,0.0011,2334.8,2334.6,6.0675451]
[1770077435507,0.0011,2335.1,2334.6,4.9967]
[1770077435945,0.0011,2335.1,2334.6,18.99585333]
[1770077436147,0.0011,2335.1,2334.6,6.06754615]
[1770077436437,0.0011,2335.1,2334.6,18.99585333]
[1770077437044,0.0011,2335.1,2334.6,6.06754615]
[1770077437211,0.0011,2335.1,2334.3,1.0709514]
[1770077437416,0.0011,2335.1,2334.3,6.0676514]
[1770077437618,0.0011,2335.1,2334.3,1.0709514]
[1770077438357,12.71841187,2335.1,2334.4,4.9967]
[1770077438528,7.030025,2334.8,2333.8,13.9995104]
[1770077438712,5.597541,2334.7,2333.9,4.9967]
[1770077438918,15.61968173,2334.6,2333.9,4.9967]
[1770077439223,9.95953085,2334.4,2333.5,0.001]
[1770077439949,2.90236986,2334.6,2333.5,1.07235051]
[1770077440139,5.761672,2334.5,2333.5,14.00065769]
[1770077440741,2.90236986,2334.6,2333.5,0.001]
[1770077440742,12.22806645,2334.2,2333.5,0.001]
[1770077440943,11.36969872,2334.1,2333.5,0.001]
[1770077441145,9.6284742,2334.1,2333.5,0.001]
[1770077442043,21.62521745,2334.0,2333.5,0.001]
[1770077442248,10.008829,2333.8,2333.3,0.001]
[1770077442454,9.103575,2333.6,2333.1,0.001]
[1770077443153,1.07135204,2333.5,2333.1,0.001]
[1770077443737,1.07135204,2333.5,2332.4,12.92830718]
[1770077443738,11.909236,2333.4,2332.4,12.92830718]
[1770077443930,10.561993,2333.4,2332.4,12.92830718]
[1770077444129,7.865593,2333.2,2332.3,0.001]
[1770077445054,1.07153572,2333.1,2332.3,0.001]
[1770077445441,10.130847,2333.0,2332.3,0.001]
[1770077447154,8.35686414,2333.1,2332.3,0.001]
[1770077447155,1.07153572,2333.1,2333.0,0.001]
[1770077447455,1.72365305,2333.1,2332.3,0.001]
[1770077447964,5.44913901,2333.3,2332.4,12.92830718]
[1770077447965,2.23478342,2333.3,2332.4,12.92830718]
[1770077448123,3.612701,2333.2,2332.4,12.92830718]
[1770077449154,1.07152283,2333.2,2332.4,12.92830718]
[1770077449458,1.66821331,2333.2,2332.3,0.001]
[1770077450347,1.07152283,2333.2,2332.3,0.001]
[1770077450665,3.750114,2333.0,2332.3,0.001]
[1770077450870,4.34680448,2333.0,2332.3,0.001]
[1770077451044,16.163018,2332.9,2332.3,0.001]
[1770077451776,7.54851,2332.8,2331.8,12.14786498]
[1770077451967,7.54851,2332.8,2331.5,12.14786498]
[1770077451968,12.750028,2332.6,2331.5,12.14786498]
[1770077452662,12.750028,2332.6,2331.4,0.09020693]
[1770077452663,2.64831,2332.2,2331.4,0.09020693]
[1770077452830,2.64831,2332.2,2330.9,13.22339222]
[1770077452831,2.12701,2331.7,2330.9,0.003]
[1770077453034,8.359351,2332.0,2331.1,12.14786498]
[1770077453234,2.081685,2332.0,2331.1,13.2203013]
[1770077453459,2.364,2332.0,2331.1,13.2203013]
[1770077453661,2.364,2332.0,2331.1,12.14786498]
[1770077453868,2.364,2332.0,2331.1,13.22030381]
[1770077454087,2.364,2332.0,2331.1,12.14786498]
[1770077454267,2.96069048,2332.0,2330.9,0.003]
[1770077454443,3.09978289,2332.1,2330.9,12.15086498]
[1770077454444,5.417345,2331.9,2330.9,12.15086498]
[1770077454761,11.097823,2331.7,2330.5,12.14786498]
[1770077454964,4.116945,2331.5,2330.5,12.14786498]
[1770077455266,9.409125,2331.3,2330.2,12.14786498]
[1770077455470,8.26653054,2331.2,2329.5,0.1150849]
[1770077455675,8.26653054,2331.2,2329.7,12.14786498]
[1770077455676,8.86322102,2331.2,2329.7,12.14786498]
[1770077455873,8.86322102,2331.2,2330.3,12.14786498]
[1770077455874,1.3152757,2331.1,2330.3,12.14786498]
[1770077456039,2.254363,2331.4,2330.3,12.14786498]
[1770077456238,0.899,2331.5,2330.5,12.14786498]
[1770077456458,2.943978,2331.4,2330.5,12.14786498]
[1770077457682,8.79186,2331.3,2330.8,0.003]
[1770077457964,0.986422,2331.2,2330.8,0.003]